fUSD/lending_fUSD_20260307
["ID","MTS","AMOUNT","RATE_DAILY","PERIOD"]
[407871066,1772860241517,-2446.0,0.00019658,2]
[407871067,1772860241528,-1572.0,0.00019658,2]
[407871068,1772860241542,-562.0,0.00019658,2]
[407871069,1772860241552,-563.0,0.00019658,2]
[407871070,1772860241562,-500.0,0.00019674,7]
[407871071,1772860241572,-190.26705956,0.00019692,2]
[407871072,1772860241582,-1183.0,0.00019692,2]
[407871073,1772860241592,-2135.07406605,0.000197,2]
[407871074,1772860241601,-1200.0,0.000197,7]
[407871075,1772860241613,-3597.35899069,0.00019702,2]
[407871076,1772860241624,-870.94,0.00019711,2]
[407871077,1772860241636,-707.0,0.00019712,2]
[407871078,1772860241646,-2027.0,0.00019712,2]
[407871079,1772860241655,-999.0,0.00019712,2]
[407871080,1772860241666,-524.0,0.00019712,2]
[407871081,1772860241677,-597.0,0.00019712,2]
[407871082,1772860241687,-2446.0,0.00019712,2]
[407871083,1772860241697,-1572.0,0.00019712,2]
[407871084,1772860241707,-562.0,0.00019712,2]
[407871085,1772860241717,-563.0,0.00019712,2]
[407871086,1772860241726,-266.51229189,0.00019726,2]
[407871087,1772860241736,-500.0,0.00019729,7]
[407871088,1772860241746,-200.0,0.00019736,2]
[407871089,1772860241755,-168.0,0.00019738,2]
[407871090,1772860241766,-2358.459,0.00019745,2]
[407871091,1772860241775,-187.489,0.00019745,2]
[407871092,1772860241785,-1183.0,0.00019746,2]
[407871093,1772860241795,-150.0,0.00019767,30]
[407871094,1772860241805,-152.0,0.00019767,30]
[407871095,1772860241815,-712.13672212,0.00019767,2]
[407871096,1772860242079,-2036.5059769,0.00019767,2]
[407871097,1772860242116,-1011.99987088,0.00019767,2]
[407871098,1772860242125,-541.55896333,0.00019767,2]
[407871099,1772860242135,-603.19591819,0.00019767,2]
[407871100,1772860242144,-2453.43196033,0.00019767,2]
[407871101,1772860242154,-1579.44523635,0.00019767,2]
[407871102,1772860242163,-570.0,0.00019767,2]
[407871103,1772860242172,-585.08426516,0.00019767,2]
[407871104,1772860242182,-1508.07028831,0.00019771,2]
[407871105,1772860242191,-548.75345228,0.00019773,2]
[407871106,1772860242201,-312.91218141,0.00019773,2]
[407871107,1772860242211,-500.0,0.00019784,7]
[407871108,1772860242220,-1200.0,0.000198,7]
[407871109,1772860242230,-2945.56917168,0.000198,7]
[407871110,1772860242239,-3597.35899069,0.00019801,2]
[407871111,1772860242249,-1183.0,0.00019801,2]
[407871112,1772860242258,-500.0,0.00019838,7]
[407871113,1772860242267,-168.0,0.00019856,2]
[407871114,1772860242276,-1183.0,0.00019856,2]
[407871115,1772860242285,-500.0,0.00019893,7]
[407871116,1772860242294,-162.52792545,0.000199,2]
[407871117,1772860242303,-16228.5515,0.000199,2]
[407871118,1772860242313,-1000.0,0.000199,2]
[407871119,1772860242322,-1200.0,0.000199,7]
[407871120,1772860242331,-312.91218141,0.000199,2]
[407871121,1772860242341,-1508.07028831,0.000199,2]
[407871122,1772860242351,-3597.35899069,0.000199,2]
[407871123,1772860242360,-1088.66773329,0.000199,2]
[407871124,1772860242369,-1183.0,0.00019911,2]
[407871125,1772860242378,-500.0,0.00019948,7]
[407871126,1772860242388,-1183.0,0.00019966,2]
[407871127,1772860242397,-547.0,0.00019973,2]
[407871128,1772860242407,-300.0,0.00019973,2]
[407871129,1772860242416,-300.0,0.00019973,2]
[407871130,1772860242425,-300.0,0.00019973,2]
[407871131,1772860242434,-300.0,0.00019973,2]
[407871132,1772860242444,-300.0,0.00019973,2]
[407871133,1772860242453,-300.0,0.00019973,2]
[407871134,1772860242462,-300.0,0.00019973,2]
[407871135,1772860242472,-300.0,0.00019973,2]
[407871136,1772860242481,-213.0,0.00019973,2]
[407871137,1772860242491,-571.0,0.00019981,2]
[407871138,1772860242501,-150.0,0.00019981,2]
[407871139,1772860242511,-150.0,0.00019981,2]
[407871140,1772860242522,-150.0,0.00019981,2]
[407871141,1772860242531,-150.0,0.00019981,2]
[407871142,1772860242540,-295.0,0.00019981,2]
[407871143,1772860242551,-733.32656971,0.00019988,2]
[407871144,1772860242562,-2500.0,0.00019988,2]
[407871145,1772860242571,-2500.0,0.00019988,2]
[407871146,1772860242581,-2625.52153756,0.00019988,2]
[407871147,1772860242591,-500.0,0.00019988,2]
[407871148,1772860242602,-500.0,0.00019988,2]
[407871149,1772860242611,-500.0,0.00019988,2]
[407871150,1772860242621,-500.0,0.00019988,2]
[407871151,1772860242630,-500.0,0.00019988,2]
[407871152,1772860242639,-500.0,0.00019988,2]
[407871153,1772860242649,-500.0,0.00019988,2]
[407871154,1772860242659,-500.0,0.00019988,2]
[407871155,1772860242669,-500.0,0.00019988,2]
[407871156,1772860242678,-500.0,0.00019988,2]
[407871157,1772860242688,-500.0,0.00019988,2]
[407871158,1772860242698,-1469.73446645,0.00019988,2]
[407871159,1772860242707,-500.0,0.00019988,2]
[407871160,1772860242717,-315.19202845,0.00019988,2]
[407871161,1772860242726,-151.0,0.00019988,2]
[407871162,1772860242735,-151.0,0.00019988,2]
[407871163,1772860242744,-151.0,0.00019988,2]
[407871164,1772860242754,-151.0,0.00019988,2]
[407871165,1772860242763,-151.0,0.00019988,2]
[407871166,1772860242772,-151.0,0.00019988,2]
[407871167,1772860242782,-151.0,0.00019988,2]
[407871168,1772860242791,-151.0,0.00019988,2]
[407871169,1772860242801,-151.0,0.00019988,2]
[407871170,1772860242810,-151.0,0.00019988,2]
[407871171,1772860242820,-169.27143825,0.00019988,2]
[407871172,1772860242829,-152.0,0.00019994,6]
[407871173,1772860242839,-3000.0,0.00019996,2]
[407871174,1772860242848,-3000.0,0.00019996,7]
[407871175,1772860242857,-1837.0,0.00019997,2]
[407871176,1772860242867,-5298.46868171,0.00019997,2]
[407871177,1772860242876,-74432.046631,0.00019997,2]
[407871178,1772860242886,-3684.537568,0.00019997,2]
[407871179,1772860242895,-13623.1639006,0.00019997,2]
[407871180,1772860242904,-183918.1948895,0.00019997,2]
[407871181,1772860242914,-151.0,0.00019997,2]
[407871182,1772860242923,-155.661,0.00019999,2]
[407871183,1772860242932,-256.75572098,0.00019999,2]
[407871184,1772860242942,-514.0,0.0002,7]
[407871185,1772860242951,-3000.0,0.0002,7]
[407871186,1772860242961,-1500.0,0.0002,7]
[407871187,1772860242971,-3000.0,0.0002,7]
[407871188,1772860242980,-3856016.35340547,0.0002,2]
[407871190,1772860243736,-414.0,0.00019057,2]
[407871191,1772860243747,-33142.67434391,0.0002,2]
[407871192,1772860243768,-2923577.76899569,0.0002,2]
[407871193,1772860243778,-1475.05214868,0.0002,5]
[407871194,1772860243787,-949939.96016557,0.0002,2]
[407871195,1772860243798,-2953.98353477,0.0002,7]
[407871196,1772860243807,-132650.75387157,0.0002,2]
[407871197,1772860243816,-501.32581746,0.0002,10]
[407871198,1772860243825,-532.31036079,0.0002,7]
[407871199,1772860243835,-1435.21,0.0002,120]
[407871200,1772860243845,-12980.51845403,0.0002,2]
[407871201,1772860243856,-726.32822673,0.0002,120]
[407871202,1772860243866,-1841.54488066,0.0002,120]
[407871203,1772860243875,-281.34618741,0.0002,2]
[407871204,1772860243885,-281.34618741,0.0002,2]
[407871205,1772860243894,-281.34618741,0.0002,2]
[407871206,1772860243904,-281.34618741,0.0002,2]
[407871207,1772860243914,-281.34618741,0.0002,2]
[407871208,1772860243923,-281.34618741,0.0002,2]
[407871209,1772860243932,-281.34618741,0.0002,2]
[407871210,1772860243942,-281.34618741,0.0002,2]
[407871211,1772860243951,-281.3461874,0.0002,2]
[407871212,1772860243960,-281.3461874,0.0002,2]
[407871213,1772860243970,-281.3461874,0.0002,2]
[407871214,1772860243979,-281.3461874,0.0002,2]
[407871215,1772860243990,-281.3461874,0.0002,2]
[407871216,1772860243999,-281.3461874,0.0002,2]
[407871217,1772860244008,-281.3461874,0.0002,2]
[407871218,1772860244018,-281.3461874,0.0002,2]
[407871219,1772860244028,-281.3461874,0.0002,2]
[407871220,1772860244037,-281.3461874,0.0002,2]
[407871221,1772860244139,-281.3461874,0.0002,2]
[407871222,1772860244148,-281.3461874,0.0002,2]
[407871223,1772860244157,-199.8,0.0002,5]
[407871224,1772860244166,-4649.79498263,0.0002,2]
[407871225,1772860244175,-1000.0,0.0002,2]
[407871226,1772860244184,-1000.0,0.0002,2]
[407871227,1772860244193,-1000.0,0.0002,2]
[407871228,1772860244202,-1000.0,0.0002,2]
[407871229,1772860244211,-973.09165327,0.0002,2]
[407871230,1772860244220,-154.61176372,0.0002,2]
[407871231,1772860244229,-150.5,0.0002,2]
[407871232,1772860244238,-150.0,0.0002,2]
[407871233,1772860244247,-423.47,0.0002,7]
[407871234,1772860244256,-8646.40162624,0.0002,2]
[407871235,1772860244265,-150.0,0.0002,2]
[407871236,1772860244275,-23587.74742454,0.0002,2]
[407871237,1772860244284,-2942.52233711,0.0002,2]
[407871238,1772860244293,-150.0,0.0002,2]
[407871239,1772860244303,-437.74275135,0.0002,2]
[407871240,1772860244312,-9000.0,0.0002,2]
[407871241,1772860244321,-700.67637051,0.0002,14]
[407871242,1772860244331,-1032.957004,0.0002,2]
[407871243,1772860244340,-2000.0,0.0002,2]
[407871244,1772860244350,-2000.0,0.0002,2]
[407871245,1772860244359,-331365.01686053,0.0002,2]
[407871249,1772860265685,95.934377,0.00013333,2]
[407871372,1772861186940,10000.01,0.000114,2]
[407871373,1772861186963,8726.8871324,0.000114,2]
[407871374,1772861205145,-214.68903943,0.00013333,2]
[407871376,1772861346854,-304.31096057,0.00013333,2]
[407871377,1772861346875,-172.0,0.00013333,3]
[407871378,1772861346896,-567.57,0.00014,2]
[407871379,1772861346917,-96.38300535,0.00014046,2]
[407871393,1772861431768,-184.52952832,0.00014046,2]
[407871394,1772861431778,-313.65460499,0.00014666,2]
[407871395,1772861431787,-250.0,0.00014666,2]
[407871396,1772861431798,-600.0,0.00014666,2]
[407871397,1772861431809,-169.80506277,0.000149,2]
[407871398,1772861431819,-200.0,0.00015172,2]
[407871399,1772861431829,-755.78,0.00015471,2]
[407871400,1772861431839,-1794.37,0.00015664,2]
[407871401,1772861431849,-528.11610231,0.000161,2]
[407871402,1772861431859,-76667.2284,0.000161,2]
[407871403,1772861431869,-201.0,0.00016123,2]
[407871404,1772861431878,-1200.0,0.00016189,2]
[407871405,1772861431890,-151.0,0.0001619,2]
[407871406,1772861431900,-500.0,0.0001619,2]
[407871407,1772861431912,-151.0,0.0001619,2]
[407871408,1772861431922,-500.0,0.0001619,2]
[407871409,1772861431931,-151.0,0.0001619,2]
[407871410,1772861431941,-500.0,0.0001619,2]
[407871411,1772861431950,-151.0,0.0001619,2]
[407871412,1772861431959,-500.0,0.0001619,2]
[407871413,1772861431969,-151.0,0.0001619,2]
[407871414,1772861431978,-500.0,0.0001619,2]
[407871415,1772861431987,-151.0,0.0001619,2]
[407871416,1772861431997,-500.0,0.0001619,2]
[407871417,1772861432007,-151.0,0.0001619,2]
[407871418,1772861432016,-500.0,0.0001619,2]
[407871419,1772861432030,-151.0,0.0001619,2]
[407871423,1772861432410,-300.97435296,0.0001619,2]
[407871424,1772861432460,-151.0,0.0001619,2]
[407871425,1772861432472,-151.0,0.0001619,2]
[407871426,1772861432482,-151.0,0.0001619,2]
[407871427,1772861432492,-500.0,0.0001619,2]
[407871428,1772861432502,-500.0,0.0001619,2]
[407871429,1772861432512,-500.0,0.0001619,2]
[407871430,1772861432521,-500.0,0.0001619,2]
[407871431,1772861432531,-500.0,0.0001619,2]
[407871432,1772861432541,-500.0,0.0001619,2]
[407871433,1772861432551,-500.0,0.0001619,2]
[407871434,1772861432560,-240.4496104,0.0001619,2]
[407871435,1772861432570,-504.38999336,0.0001619,2]
[407871436,1772861432583,-506.03417329,0.000162,2]
[407871437,1772861432593,-201.01,0.00016393,2]
[407871438,1772861432603,-9999.99,0.00016393,2]
[407871439,1772861432612,-519.0,0.00016842,5]
[407871440,1772861432623,-456.5833323,0.00017105,2]
[407871441,1772861432633,-166.66,0.00017369,2]
[407871442,1772861432642,-182.15,0.00017531,2]
[407871443,1772861432652,-2000.0,0.0001773,2]
[407871444,1772861432661,-166.66,0.00017735,2]
[407871445,1772861432671,-480.0,0.00017786,2]
[407871446,1772861432683,-1500.0,0.00017808,7]
[407871447,1772861432694,-3770.27,0.00017837,2]
[407871448,1772861432705,-182.15,0.00017969,2]
[407871449,1772861432715,-2961.57,0.00018027,2]
[407871450,1772861432726,-260.20222,0.00018044,2]
[407871451,1772861432736,-200.0,0.00018058,2]
[407871452,1772861432747,-166.66,0.000181,2]
[407871453,1772861432756,-1730.42,0.00018217,2]
[407871454,1772861432766,-1168.75,0.00018238,2]
[407871455,1772861432777,-1072.21,0.00018283,2]
[407871456,1772861432786,-200.0,0.00018316,2]
[407871457,1772861432796,-182.15,0.00018408,2]
[407871458,1772861432805,-166.66,0.00018466,2]
[407871459,1772861432815,-53955.1412438,0.00018552,2]
[407871460,1772861432827,-17779.6799562,0.00018552,2]
[407871461,1772861432837,-2000.0,0.00018584,2]
[407871462,1772861432846,-21233.07,0.00018652,2]
[407871463,1772861432857,-1000.0,0.0001879,2]
[407871464,1772861432866,-5981.99540193,0.000188,2]
[407871465,1772861432881,-674.06681493,0.000188,2]
[407871468,1772861438061,-2231.93778314,0.000188,2]
[407871469,1772861438072,-150.0,0.00018811,2]
[407871470,1772861438082,-166.66,0.00018832,2]
[407871471,1772861438092,-546.0,0.00018845,2]
[407871472,1772861438104,-182.15,0.00018846,2]
[407871473,1772861438113,-172.13,0.00018897,2]
[407871474,1772861438123,-1500.0,0.00018904,7]
[407871475,1772861438132,-500.0,0.00018945,2]
[407871476,1772861438142,-168.0,0.0001897,2]
[407871477,1772861438151,-548.75345228,0.00018973,2]
[407871478,1772861438161,-5999.97,0.00018999,2]
[407871479,1772861438170,-733.32656971,0.00018999,2]
[407871480,1772861438180,-1469.73446645,0.00018999,2]
[407871481,1772861438190,-500.0,0.00018999,2]
[407871482,1772861438199,-315.19202845,0.00018999,2]
[407871483,1772861438209,-2500.0,0.00018999,2]
[407871484,1772861438219,-2500.0,0.00018999,2]
[407871485,1772861438228,-2625.52153756,0.00018999,2]
[407871486,1772861438238,-151.0,0.00018999,2]
[407871487,1772861438248,-693.3919763,0.00018999,2]
[407871488,1772861438258,-500.0,0.00018999,2]
[407871489,1772861438268,-500.0,0.00018999,2]
[407871490,1772861438277,-500.0,0.00018999,2]
[407871491,1772861438287,-500.0,0.00018999,2]
[407871492,1772861438296,-500.0,0.00018999,2]
[407871493,1772861438306,-500.0,0.00018999,2]
[407871494,1772861438316,-500.0,0.00018999,2]
[407871495,1772861438325,-500.0,0.00018999,2]
[407871496,1772861438335,-500.0,0.00018999,2]
[407871497,1772861438344,-500.0,0.00018999,2]
[407871498,1772861438354,-500.0,0.00018999,2]
[407871499,1772861438365,-719.04747942,0.00019054,2]
[407871500,1772861438376,-340.59352327,0.00019099,2]
[407871501,1772861438387,-745.65223616,0.00019109,2]
[407871502,1772861438398,-773.2413689,0.00019164,2]
[407871503,1772861438407,-172.78723296,0.00019192,2]
[407871504,1772861438418,-1072.21,0.00019197,2]
[407871505,1772861438429,-166.66,0.00019197,2]
[407871506,1772861438439,-2000.0,0.000192,2]
[407871507,1772861438449,-1300.0,0.000192,7]
[407871508,1772861438460,-500.0,0.00019219,2]
[407871509,1772861438470,-500.0,0.00019219,2]
[407871510,1772861438480,-150.0,0.00019219,2]
[407871511,1772861438492,-539.0,0.00019219,2]
[407871512,1772861438503,-590.0,0.00019219,2]
[407871513,1772861438513,-500.0,0.00019219,2]
[407871514,1772861438523,-1224.0,0.00019219,2]
[407871515,1772861438534,-694.0,0.00019219,2]
[407871516,1772861438544,-150.0,0.00019219,2]
[407871517,1772861438555,-150.0,0.00019219,2]
[407871518,1772861438564,-500.0,0.00019219,2]
[407871519,1772861438574,-1013.0,0.00019219,2]
[407871520,1772861438584,-500.0,0.00019219,2]
[407871521,1772861438595,-500.0,0.00019219,2]
[407871522,1772861438606,-500.0,0.00019219,2]
[407871523,1772861438615,-707.0,0.00019219,2]
[407871524,1772861438627,-500.0,0.00019219,2]
[407871525,1772861438638,-500.0,0.00019219,2]
[407871526,1772861438648,-801.85129955,0.00019219,2]
[407871527,1772861438660,-500.0,0.00019274,2]
[407871528,1772861438670,-500.0,0.00019274,2]
[407871529,1772861438682,-150.04993963,0.00019274,2]
[407871530,1772861438692,-539.0,0.00019274,2]
[407871531,1772861438702,-590.0,0.00019274,2]
[407871532,1772861438711,-500.0,0.00019274,2]
[407871533,1772861438720,-1224.0,0.00019274,2]
[407871534,1772861438729,-694.0,0.00019274,2]
[407871535,1772861438738,-500.0,0.00019274,2]
[407871536,1772861438747,-1013.0,0.00019274,2]
[407871537,1772861438757,-500.0,0.00019274,2]
[407871538,1772861438766,-500.0,0.00019274,2]
[407871539,1772861438775,-500.42886852,0.00019274,2]
[407871540,1772861438784,-707.0,0.00019274,2]
[407871541,1772861438793,-500.85355139,0.00019274,2]
[407871542,1772861438803,-500.0,0.00019274,2]
[407871543,1772861438812,-831.51979763,0.00019274,2]
[407871544,1772861438821,-182.15,0.00019284,2]
[407871545,1772861438830,-168.0,0.00019292,2]
[407871546,1772861438839,-2600.0,0.000193,7]
[407871547,1772861438848,-500.0,0.00019329,2]
[407871548,1772861438858,-410.84240121,0.00019329,2]
[407871549,1772861438867,-539.0,0.00019329,2]
[407871550,1772861438876,-590.0,0.00019329,2]
[407871551,1772861438885,-500.0,0.00019329,2]
[407871552,1772861438895,-1224.0,0.00019329,2]
[407871553,1772861438904,-694.0,0.00019329,2]
[407871554,1772861438913,-500.0,0.00019329,2]
[407871555,1772861438922,-1013.0,0.00019329,2]
[407871556,1772861438931,-500.0,0.00019329,2]
[407871557,1772861438940,-500.0,0.00019329,2]
[407871558,1772861438949,-707.0,0.00019329,2]
[407871559,1772861438958,-500.0,0.00019329,2]
[407871560,1772861438968,-862.28603014,0.00019329,2]
[407871561,1772861438977,-546.0,0.00019352,2]
[407871562,1772861438986,-500.0,0.0001936,2]
[407871563,1772861438996,-150.0,0.0001936,2]
[407871564,1772861439005,-993.0,0.0001936,2]
[407871565,1772861439014,-500.0,0.00019383,2]
[407871566,1772861439024,-539.0,0.00019383,2]
[407871567,1772861439037,-590.0,0.00019383,2]
[407871568,1772861439048,-500.0,0.00019383,2]
[407871569,1772861439057,-1224.0,0.00019383,2]
[407871570,1772861439068,-694.0,0.00019383,2]
[407871571,1772861439078,-500.0,0.00019383,2]
[407871572,1772861439087,-1013.0,0.00019383,2]
[407871573,1772861439096,-500.0,0.00019383,2]
[407871574,1772861439107,-500.0,0.00019383,2]
[407871575,1772861439117,-707.0,0.00019383,2]
[407871576,1772861439127,-500.0,0.00019383,2]
[407871577,1772861439136,-894.19061326,0.00019384,2]
[407871578,1772861439145,-3900.0,0.000194,7]
[407871579,1772861439155,-500.0,0.00019415,2]
[407871580,1772861439164,-150.0,0.00019415,2]
[407871581,1772861439173,-993.0,0.00019415,2]
[407871582,1772861439183,-168.0,0.00019418,2]
[407871583,1772861439192,-150.0,0.00019426,7]
[407871584,1772861439202,-1183.0,0.00019426,7]
[407871585,1772861439211,-2500.0,0.00019436,2]
[407871586,1772861439220,-500.0,0.00019438,2]
[407871587,1772861439229,-539.0,0.00019438,2]
[407871588,1772861439238,-590.0,0.00019438,2]
[407871589,1772861439247,-500.0,0.00019438,2]
[407871590,1772861439257,-1224.0,0.00019438,2]
[407871591,1772861439266,-694.0,0.00019438,2]
[407871592,1772861439275,-500.0,0.00019438,2]
[407871593,1772861439284,-1013.0,0.00019438,2]
[407871594,1772861439294,-500.0,0.00019438,2]
[407871595,1772861439303,-500.0,0.00019438,2]
[407871596,1772861439312,-707.0,0.00019438,2]
[407871597,1772861439321,-500.0,0.00019438,2]
[407871598,1772861439330,-927.27566595,0.00019439,2]
[407871599,1772861439339,-1003.00294821,0.00019455,2]
[407871600,1772861439349,-500.0,0.0001947,2]
[407871601,1772861439358,-150.0,0.0001947,2]
[407871602,1772861439367,-993.0,0.0001947,2]
[407871603,1772861439376,-150.0,0.00019481,7]
[407871604,1772861439386,-1183.0,0.00019481,7]
[407871605,1772861439395,-500.0,0.00019493,2]
[407871606,1772861439404,-539.0,0.00019493,2]
[407871607,1772861439414,-590.0,0.00019493,2]
[407871608,1772861439741,-500.0,0.00019493,2]
[407871609,1772861439751,-1224.0,0.00019493,2]
[407871610,1772861439760,-694.0,0.00019493,2]
[407871611,1772861439769,-500.0,0.00019493,2]
[407871612,1772861439779,-1013.0,0.00019493,2]
[407871613,1772861439787,-500.0,0.00019493,2]
[407871614,1772861439796,-500.0,0.00019493,2]
[407871615,1772861439805,-707.0,0.00019493,2]
[407871616,1772861439815,-500.0,0.00019493,2]
[407871617,1772861439824,-961.58486559,0.00019494,2]
[407871618,1772861439833,-172.78723296,0.000195,7]
[407871619,1772861439841,-5200.0,0.000195,7]
[407871620,1772861439851,-2728.39,0.00019509,2]
[407871621,1772861439860,-500.0,0.00019524,2]
[407871622,1772861439869,-298.35000695,0.00019524,2]
[407871623,1772861439878,-993.0,0.00019524,2]
[407871624,1772861439887,-190.26705956,0.00019536,7]
[407871625,1772861439896,-1183.0,0.00019536,7]
[407871626,1772861439906,-500.0,0.00019548,2]
[407871627,1772861439915,-539.0,0.00019548,2]
[407871628,1772861439924,-590.0,0.00019548,2]
[407871629,1772861439933,-500.0,0.00019548,2]
[407871630,1772861439941,-1224.0,0.00019548,2]
[407871631,1772861439951,-694.0,0.00019548,2]
[407871632,1772861439960,-500.0,0.00019548,2]
[407871633,1772861439969,-1013.0,0.00019548,2]
[407871634,1772861439978,-500.0,0.00019548,2]
[407871635,1772861439987,-351.70358089,0.00019548,2]
[407871636,1772861439996,-707.0,0.00019548,2]
[407871637,1772861440006,-500.0,0.00019548,2]
[407871638,1772861440016,-997.16350561,0.00019549,2]
[407871639,1772861440027,-1003.00294821,0.00019566,2]
[407871640,1772861440038,-500.0,0.00019579,2]
[407871641,1772861440048,-993.0,0.00019579,2]
[407871642,1772861440057,-1183.0,0.0001959,7]
[407871643,1772861440067,-2491.52527575,0.000196,2]
[407871644,1772861440078,-6500.0,0.000196,7]
[407871645,1772861440087,-322.1097908,0.00019603,2]
[407871646,1772861440097,-539.0,0.00019603,2]
[407871647,1772861440107,-590.0,0.00019603,2]
[407871648,1772861440117,-500.0,0.00019603,2]
[407871649,1772861440126,-1224.0,0.00019603,2]
[407871650,1772861440135,-694.0,0.00019603,2]
[407871651,1772861440144,-500.0,0.00019603,2]
[407871652,1772861440154,-1013.0,0.00019603,2]
[407871653,1772861440163,-500.0,0.00019603,2]
[407871654,1772861440172,-707.0,0.00019603,2]
[407871655,1772861440182,-500.0,0.00019603,2]
[407871656,1772861440191,-1279.0,0.00019634,2]
[407871657,1772861440200,-922.0,0.00019634,2]
[407871658,1772861440209,-1212.0,0.00019634,2]
[407871659,1772861440219,-2460.0,0.00019634,2]
[407871660,1772861440227,-5991.0,0.00019634,2]
[407871661,1772861440236,-500.0,0.00019634,2]
[407871662,1772861440245,-993.0,0.00019634,2]
[407871663,1772861440254,-1183.0,0.00019645,7]
[407871664,1772861440264,-539.0,0.00019657,2]
[407871665,1772861440273,-590.0,0.00019657,2]
[407871666,1772861440282,-500.0,0.00019657,2]
[407871667,1772861440291,-1224.0,0.00019657,2]
[407871668,1772861440300,-694.0,0.00019657,2]
[407871669,1772861440310,-500.0,0.00019657,2]
[407871670,1772861440319,-1013.0,0.00019657,2]
[407871671,1772861440328,-500.0,0.00019657,2]
[407871672,1772861440337,-707.0,0.00019657,2]
[407871673,1772861440347,-500.0,0.00019657,2]
[407871674,1772861440356,-1003.00294821,0.00019678,2]
[407871675,1772861440365,-500.0,0.00019689,2]
[407871676,1772861440374,-993.0,0.00019689,2]
[407871677,1772861440383,-500.0,0.00019692,2]
[407871678,1772861440392,-500.0,0.00019692,2]
[407871679,1772861440401,-500.0,0.00019692,2]
[407871680,1772861440410,-500.0,0.00019692,2]
[407871681,1772861440419,-1183.0,0.000197,7]
[407871682,1772861440428,-2135.07406605,0.000197,2]
[407871683,1772861440437,-1300.0,0.000197,7]
[407871684,1772861440447,-539.0,0.00019712,2]
[407871685,1772861440456,-590.0,0.00019712,2]
[407871686,1772861440466,-500.0,0.00019712,2]
[407871687,1772861440475,-1224.0,0.00019712,2]
[407871688,1772861440483,-694.0,0.00019712,2]
[407871689,1772861440492,-500.0,0.00019712,2]
[407871690,1772861440502,-1013.0,0.00019712,2]
[407871691,1772861440511,-500.0,0.00019712,2]
[407871692,1772861440520,-707.0,0.00019712,2]
[407871693,1772861440529,-500.0,0.00019712,2]
[407871694,1772861440538,-1000.0,0.00019722,2]
[407871695,1772861440547,-2358.459,0.00019726,2]
[407871696,1772861440557,-187.489,0.00019726,2]
[407871697,1772861440566,-266.51229189,0.00019726,2]
[407871698,1772861440577,-154.76984687,0.0001973,2]
[407871699,1772861440586,-168.0,0.00019744,2]
[407871700,1772861440595,-993.0,0.00019744,2]
[407871701,1772861440604,-500.0,0.00019747,2]
[407871702,1772861440613,-500.0,0.00019747,2]
[407871703,1772861440622,-500.0,0.00019747,2]
[407871704,1772861440631,-500.0,0.00019747,2]
[407871705,1772861440640,-893.58807012,0.00019749,2]
[407871706,1772861440649,-1183.0,0.00019755,7]
[407871707,1772861440658,-539.0,0.00019767,2]
[407871708,1772861440668,-590.0,0.00019767,2]
[407871709,1772861440677,-500.0,0.00019767,2]
[407871710,1772861440686,-1224.0,0.00019767,2]